[Event "51st La Roda Open 2025"]
[Site "La Roda"]
[Date "2025.04.19"]
[Round "7.11"]
[White "Leiva Raya, Nicolas"]
[Black "Gomez Falagan, Daniel"]
[Result "1-0"]
[Annotator "RC"]
[ECO "D02"]
[WhiteElo "1831"]
[BlackElo "2254"]
[PlyCount "69"]
[EventDate "2025.04.15"]
[EventType "swiss"]
[EventCountry "ESP"]
[SourceTitle "playchess.com"]
[Source "ChessBase"]
[SourceQuality "1"]
[TimeControl "5400+30"]

1. d4 {[%emt 0:00:04]} d5 {[%emt 0:00:10]} 2. Bf4 {[%emt 0:00:05]} Nf6 {[%emt 0:00:08]} 3. e3 {[%emt 0:00:05]} c5 {[%emt 0:00:07]} 4. c3 {[%emt 0:00:18]} Nc6 {[%emt 0:00:09]} 5. Nf3 {[%emt 0:00:43]} Qb6 {[%emt 0:00:10]} 6. Qb3 {[%emt 0:02:25]} c4 {[%emt 0:00:16]} 7. Qxb6 {[%emt 0:00:52]} axb6 {[%emt 0:00:10]} 8. Na3 {[%emt 0:08:13]} Bf5 {[%emt 0:00:32]} 9. Nh4 {[%emt 0:03:38]} Bd7 {[%emt 0:02:26]} 10. Nf3 {[%emt 0:11:46]} h6 {[%emt 0:17:04]} 11. h3 {[%emt 0:04:13]} Bf5 {[%emt 0:01:23]} 12. Be2 {[%emt 0:01:42]} e6 {[%emt 0:07:50]} 13. Nb5 {[%emt 0:00:45]} Kd7 {[%emt 0:02:05]} 14. O-O {[%emt 0:02:36]} Ra5 {[%emt 0:01:29]} 15. a4 {[%emt 0:02:51]} Be7 {[%emt 0:00:54]} 16. Rfc1 {[%emt 0:07:42]} Ne4 {[%emt 0:07:52]} 17. Bd1 {[%emt 0:07:12]} g5 {[%emt 0:02:14]} 18. Bc7 {[%emt 0:06:54]} Ra6 {[%emt 0:00:31]} 19. g4 {[%emt 0:00:45]} Bh7 {[%emt 0:14:05]} 20. b3 {[%emt 0:02:30]} cxb3 {[%emt 0:02:49]} 21. Bxb3 {[%emt 0:00:07]} Rc8 {[%emt 0:00:08]} 22. c4 {[%emt 0:03:14]} Rxc7 {[%emt 0:08:25]} 23. Nxc7 {[%emt 0:00:13]} Kxc7 {[%emt 0:00:12]} 24. cxd5 {[%emt 0:00:07]} exd5 {[%emt 0:00:06]} 25. Bxd5 {[%emt 0:00:06]} f5 {[%emt 0:10:40]} 26. Ne5 {[%emt 0:01:24]} b5 {[%emt 0:01:11]} 27. Bxe4 {[%emt 0:01:40]} fxe4 {[%emt 0:00:05]} 28. d5 {[%emt 0:00:37]} Bf6 {[%emt 0:00:21]} 29. dxc6 {[%emt 0:00:12]} Bxe5 {[%emt 0:07:17]} 30. cxb7+ {[%emt 0:00:55]} Kxb7 {[%emt 0:00:05]} 31. Rab1 {[%emt 0:00:07]} Rb6 {[%emt 0:00:14]} 32. a5 {[%emt 0:00:20]} Rc6 {[%emt 0:01:33]} 33. Rxb5+ {[%emt 0:00:15]} Ka6 {[%emt 0:00:05]} 34. Rxc6+ {[%emt 0:00:18]} Kxb5 {[%emt 0:00:05]} 35. Rxh6 {[%emt 0:00:10]} 1-0

[Event "51st La Roda Open 2025"]
[Site "La Roda"]
[Date "2025.04.19"]
[Round "7.12"]
[White "Garcia Jimenez, Santiago"]
[Black "Fernandez Cano, Victor"]
[Result "1-0"]
[Annotator "RC"]
[ECO "C05"]
[WhiteElo "2241"]
[BlackElo "2037"]
[PlyCount "95"]
[EventDate "2025.04.15"]
[EventType "swiss"]
[EventCountry "ESP"]
[SourceTitle "playchess.com"]
[Source "ChessBase"]
[SourceQuality "1"]
[TimeControl "5400+30"]

1. e4 {[%emt 0:00:05]} e6 {[%emt 0:00:29]} 2. d4 {[%emt 1:31:25]} d5 {[%emt 0:00:26]} 3. Nd2 {[%emt 0:00:00]} Be7 {[%emt 0:01:22]} 4. c3 {[%emt 0:00:00]} Nf6 {[%emt 0:02:26]} 5. e5 {[%emt 0:00:00]} Nfd7 {[%emt 0:00:53]} 6. f4 {[%emt 0:00:00]} c5 {[%emt 0:00:42]} 7. Ndf3 {[%emt 0:00:00]} b6 {[%emt 0:04:26]} 8. Bd3 {[%emt 0:00:00]} Ba6 {[%emt 0:03:58]} 9. Bc2 {[%emt 0:00:00]} g6 {[%emt 0:07:34]} 10. Ne2 {[%emt 0:00:00]} Nc6 {[%emt 0:01:30]} 11. a3 {[%emt 0:00:00]} Qc7 {[%emt 0:08:16]} 12. b3 {[%emt 0:00:00]} Rc8 {[%emt 0:08:19]} 13. Ra2 {[%emt 0:00:00]} cxd4 {[%emt 0:03:07]} 14. cxd4 {[%emt 0:00:00]} Ndb8 {[%emt 0:13:01]} 15. O-O {[%emt 0:00:00]} Bd8 {[%emt 0:02:54]} 16. Be3 {[%emt 0:00:00]} Ne7 {[%emt 0:00:49]} 17. Qd2 {[%emt 0:00:00]} Nf5 {[%emt 0:03:01]} 18. Bf2 {[%emt 0:00:00]} h5 {[%emt 0:00:20]} 19. Rc1 {[%emt 0:00:00]} Bxe2 {[%emt 0:04:19]} 20. Qxe2 {[%emt 0:00:00]} Be7 {[%emt 0:05:22]} 21. Rd1 {[%emt 0:00:00]} a6 {[%emt 0:05:22]} 22. Bd3 {[%emt 0:00:00]} Qb7 {[%emt 0:00:07]} 23. h3 {[%emt 0:00:00]} Kd7 {[%emt 0:03:49]} 24. g4 {[%emt 0:00:00]} hxg4 {[%emt 0:03:06]} 25. hxg4 {[%emt 0:00:00]} Nh6 {[%emt 0:00:17]} 26. Ng5 {[%emt 0:00:00]} Rc3 {[%emt 0:01:50]} 27. Be1 {[%emt 0:00:00]} Rc7 {[%emt 0:00:02]} 28. a4 {[%emt 0:00:00]} Ke8 {[%emt 0:05:50]} 29. Kg2 {[%emt 0:00:00]} a5 {[%emt 0:04:01]} 30. Bb5+ {[%emt 0:00:00]} Kf8 {[%emt 0:00:19]} 31. Kg3 {[%emt 0:00:00]} Kg7 {[%emt 0:01:26]} 32. Rc2 {[%emt 0:01:30]} Rxc2 {[%emt 0:01:35]} 33. Qxc2 {[%emt 0:00:02]} Rc8 {[%emt 0:00:17]} 34. Qh2 {[%emt 0:03:38]} Qc7 {[%emt 0:01:23]} 35. Bd3 {[%emt 0:01:03]} Bb4 {[%emt 0:01:17]} 36. Bxb4 {[%emt 0:01:32]} axb4 {[%emt 0:00:04]} 37. f5 {[%emt 0:04:35]} exf5 {[%emt 0:01:59]} 38. gxf5 {[%emt 0:00:02]} Rh8 {[%emt 0:01:20]} 39. f6+ {[%emt 0:00:47]} Kg8 {[%emt 0:00:09]} 40. Qc2 {[%emt 0:03:19]} Qd7 {[%emt 0:00:02]} 41. Nf3 {[%emt 0:01:15]} Qg4+ {[%emt 0:01:01]} 42. Kf2 {[%emt 0:00:01]} Qf4 {[%emt 0:00:14]} 43. Qc8+ {[%emt 0:01:03]} Kh7 {[%emt 0:00:01]} 44. Qh3 {[%emt 0:00:14]} Kg8 {[%emt 0:00:45]} 45. Qc8+ {[%emt 0:00:51]} Kh7 {[%emt 0:00:01]} 46. Bxg6+ {[%emt 0:00:36]} Kxg6 {[%emt 0:01:06]} 47. Rg1+ {[%emt 0:00:07]} Kh7 {[%emt 0:01:43]} 48. Rg7# {[%emt 0:01:23]} 1-0

[Event "51st La Roda Open 2025"]
[Site "La Roda"]
[Date "2025.04.19"]
[Round "7.13"]
[White "Nomindalai Tumurbaatar"]
[Black "Siscar Conill, Aitor"]
[Result "0-1"]
[Annotator "RC"]
[ECO "D31"]
[WhiteElo "2211"]
[BlackElo "1986"]
[PlyCount "119"]
[EventDate "2025.04.15"]
[EventType "swiss"]
[EventCountry "ESP"]
[SourceTitle "playchess.com"]
[Source "ChessBase"]
[SourceQuality "1"]
[TimeControl "5400+30"]

1. d4 {[%emt 0:00:03]} d5 {[%emt 0:00:08]} 2. c4 {[%emt 0:00:21]} c6 {[%emt 0:00:12]} 3. Nf3 {[%emt 0:00:17]} e6 {[%emt 0:00:07]} 4. Nc3 {[%emt 0:02:45]} dxc4 {[%emt 0:00:11]} 5. a4 {[%emt 0:07:28]} Bb4 {[%emt 0:01:06]} 6. Bd2 {[%emt 0:03:19]} a5 {[%emt 0:08:57]} 7. e3 {[%emt 0:01:42]} b5 {[%emt 0:00:16]} 8. axb5 {[%emt 0:01:00]} Bxc3 {[%emt 0:00:08]} 9. Bxc3 {[%emt 0:00:25]} cxb5 {[%emt 0:00:06]} 10. d5 {[%emt 0:03:47]} Nf6 {[%emt 0:04:12]} 11. dxe6 {[%emt 0:02:24]} Qxd1+ {[%emt 0:02:03]} 12. Kxd1 {[%emt 0:01:17]} Ne4 {[%emt 0:16:24]} 13. Be1 {[%emt 0:11:56]} Nc6 {[%emt 0:06:45]} 14. Nd2 {[%emt 0:19:45]} Nc5 {[%emt 0:02:45]} 15. Be2 {[%emt 0:04:24]} Bxe6 {[%emt 0:02:34]} 16. Bf3 {[%emt 0:00:14]} Kd7 {[%emt 0:00:18]} 17. Ke2 {[%emt 0:16:54]} Bf5 {[%emt 0:20:48]} 18. Bd5 {[%emt 0:13:31]} Bd3+ {[%emt 0:03:42]} 19. Kf3 {[%emt 0:00:15]} Kd6 {[%emt 0:04:09]} 20. e4 {[%emt 0:02:16]} Rhe8 {[%emt 0:01:44]} 21. Kf4 {[%emt 0:01:42]} Nxe4 {[%emt 0:04:41]} 22. Bxe4 {[%emt 0:00:39]} g5+ {[%emt 0:01:32]} 23. Ke3 {[%emt 0:04:16]} f5 {[%emt 0:00:34]} 24. f3 {[%emt 0:00:03]} fxe4 {[%emt 0:02:08]} 25. Nxe4+ {[%emt 0:00:07]} Kc7 {[%emt 0:04:53]} 26. h4 {[%emt 0:01:19]} g4 {[%emt 0:00:44]} 27. h5 {[%emt 0:00:04]} b4 {[%emt 0:01:41]} 28. Rh4 {[%emt 0:00:15]} gxf3 {[%emt 0:00:10]} 29. gxf3 {[%emt 0:00:02]} Rad8 {[%emt 0:00:24]} 30. Rc1 {[%emt 0:01:01]} Nd4 {[%emt 0:01:16]} 31. Rg4 {[%emt 0:01:14]} Nc2+ {[%emt 0:00:53]} 32. Kf4 {[%emt 0:00:46]} Rf8+ {[%emt 0:05:27]} 33. Kg3 {[%emt 0:00:13]} Nd4 {[%emt 0:00:32]} 34. Ra1 {[%emt 0:01:06]} Rxf3+ {[%emt 0:01:05]} 35. Kh2 {[%emt 0:00:39]} Nc2 {[%emt 0:02:40]} 36. Ng5 {[%emt 0:00:30]} Re3 {[%emt 0:01:00]} 37. Bg3+ {[%emt 0:00:30]} Kc6 {[%emt 0:01:07]} 38. Rxa5 {[%emt 0:00:29]} Re2+ {[%emt 0:00:27]} 39. Kh3 {[%emt 0:00:27]} Rd5 {[%emt 0:01:31]} 40. Rxd5 {[%emt 0:00:32]} Kxd5 {[%emt 0:00:02]} 41. Rf4 {[%emt 0:00:10]} Nd4 {[%emt 0:00:27]} 42. Rf8 {[%emt 0:00:50]} Rxb2 {[%emt 0:01:03]} 43. Rd8+ {[%emt 0:00:17]} Kc5 {[%emt 0:00:06]} 44. Be5 {[%emt 0:00:29]} Bf5+ {[%emt 0:00:15]} 45. Kg3 {[%emt 0:00:44]} Nc6 {[%emt 0:01:10]} 46. Re8 {[%emt 0:00:32]} Rb3+ {[%emt 0:00:29]} 47. Kf4 {[%emt 0:00:04]} Bb1 {[%emt 0:00:31]} 48. Rc8 {[%emt 0:00:55]} Kb5 {[%emt 0:00:25]} 49. Ne6 {[%emt 0:00:31]} Rh3 {[%emt 0:00:37]} 50. Nc7+ {[%emt 0:00:22]} Ka4 {[%emt 0:00:23]} 51. Bd6 {[%emt 0:00:38]} Rxh5 {[%emt 0:00:33]} 52. Na6 {[%emt 0:00:19]} Rf5+ {[%emt 0:00:30]} 53. Ke3 {[%emt 0:00:13]} Kb5 {[%emt 0:00:31]} 54. Nc7+ {[%emt 0:00:57]} Kb6 {[%emt 0:00:25]} 55. Ne6 {[%emt 0:00:31]} Rf6 {[%emt 0:00:32]} 56. Bc5+ {[%emt 0:00:26]} Kb5 {[%emt 0:00:32]} 57. Nf8 {[%emt 0:00:33]} c3 {[%emt 0:00:33]} 58. Bd4 {[%emt 0:00:31]} Nxd4 {[%emt 0:00:30]} 59. Kxd4 {[%emt 0:00:24]} c2 {[%emt 0:00:11]} 60. Nxh7 {[%emt 0:01:07]} 0-1

[Event "51st La Roda Open 2025"]
[Site "La Roda"]
[Date "2025.04.19"]
[Round "7.14"]
[White "Cordoba Picazo, Manuel Javier"]
[Black "Pomes Marcet, Joan"]
[Result "0-1"]
[Annotator "RC"]
[ECO "A13"]
[WhiteElo "1969"]
[BlackElo "2187"]
[PlyCount "120"]
[EventDate "2025.04.15"]
[EventType "swiss"]
[EventCountry "ESP"]
[SourceTitle "playchess.com"]
[Source "ChessBase"]
[SourceQuality "1"]
[TimeControl "5400+30"]

1. Nf3 {[%emt 0:00:02]} d5 {[%emt 0:00:14]} 2. g3 {[%emt 0:00:11]} Nf6 {[%emt 0:01:01]} 3. Bg2 {[%emt 0:00:15]} c6 {[%emt 0:00:34]} 4. c4 {[%emt 0:00:15]} e6 {[%emt 0:02:02]} 5. O-O {[%emt 0:00:15]} Bd6 {[%emt 0:01:48]} 6. b3 {[%emt 0:02:37]} O-O {[%emt 0:01:04]} 7. Bb2 {[%emt 0:01:13]} Qe7 {[%emt 0:01:22]} 8. d4 {[%emt 0:01:35]} b6 {[%emt 0:04:37]} 9. Nc3 {[%emt 0:03:56]} Ba3 {[%emt 0:05:00]} 10. Bxa3 {[%emt 0:00:47]} Qxa3 {[%emt 0:00:03]} 11. Ne5 {[%emt 0:00:28]} Ba6 {[%emt 0:07:02]} 12. Qc2 {[%emt 0:05:27]} Rc8 {[%emt 0:14:47]} 13. Rfc1 {[%emt 0:05:43]} Nbd7 {[%emt 0:02:47]} 14. Nxd7 {[%emt 0:09:55]} Nxd7 {[%emt 0:00:07]} 15. Nb1 {[%emt 0:00:24]} Qd6 {[%emt 0:04:14]} 16. Rd1 {[%emt 0:03:31]} Rab8 {[%emt 0:05:34]} 17. Nd2 {[%emt 0:01:47]} c5 {[%emt 0:08:55]} 18. cxd5 {[%emt 0:17:22]} cxd4 {[%emt 0:12:49]} 19. Nc4 {[%emt 0:06:36]} Bxc4 {[%emt 0:01:56]} 20. bxc4 {[%emt 0:00:09]} e5 {[%emt 0:00:31]} 21. Bh3 {[%emt 0:02:28]} Rc7 {[%emt 0:02:59]} 22. Bxd7 {[%emt 0:00:08]} Qxd7 {[%emt 0:00:24]} 23. Rac1 {[%emt 0:04:53]} Rbc8 {[%emt 0:00:30]} 24. Qe4 {[%emt 0:01:12]} Qd6 {[%emt 0:07:59]} 25. e3 {[%emt 0:01:30]} dxe3 {[%emt 0:00:42]} 26. fxe3 {[%emt 0:00:16]} b5 {[%emt 0:01:54]} 27. c5 {[%emt 0:02:44]} Rxc5 {[%emt 0:00:07]} 28. Rxc5 {[%emt 0:00:05]} Rxc5 {[%emt 0:00:18]} 29. Qb4 {[%emt 0:01:04]} g6 {[%emt 0:01:49]} 30. Qa3 {[%emt 0:01:32]} a6 {[%emt 0:01:06]} 31. Qb4 {[%emt 0:03:04]} Kg7 {[%emt 0:01:23]} 32. a3 {[%emt 0:03:06]} h5 {[%emt 0:01:21]} 33. Qb3 {[%emt 0:02:45]} Rc4 {[%emt 0:00:25]} 34. Kg2 {[%emt 0:02:03]} h4 {[%emt 0:01:43]} 35. Rd2 {[%emt 0:01:14]} f5 {[%emt 0:01:00]} 36. Qd3 {[%emt 0:01:03]} Kf6 {[%emt 0:00:39]} 37. Qb3 {[%emt 0:01:01]} hxg3 {[%emt 0:01:38]} 38. hxg3 {[%emt 0:00:05]} Ke7 {[%emt 0:00:26]} 39. Qd3 {[%emt 0:01:59]} Qc5 {[%emt 0:01:48]} 40. d6+ {[%emt 0:04:02]} Kd7 {[%emt 0:00:10]} 41. Qb3 {[%emt 0:00:07]} Qc6+ {[%emt 0:00:30]} 42. Kh2 {[%emt 0:00:34]} Qe4 {[%emt 0:02:37]} 43. a4 {[%emt 0:01:53]} b4 {[%emt 0:00:22]} 44. a5 {[%emt 0:00:24]} g5 {[%emt 0:00:53]} 45. Qa4+ {[%emt 0:06:16]} Qc6 {[%emt 0:00:25]} 46. Qb3 {[%emt 0:00:29]} g4 {[%emt 0:00:16]} 47. Qd1 {[%emt 0:00:51]} Qe4 {[%emt 0:01:34]} 48. Qa4+ {[%emt 0:01:00]} Rc6 {[%emt 0:00:34]} 49. Qb3 {[%emt 0:00:16]} Qc4 {[%emt 0:00:24]} 50. Qb1 {[%emt 0:00:36]} e4 {[%emt 0:00:30]} 51. Rb2 {[%emt 0:04:08]} b3 {[%emt 0:01:28]} 52. Rxb3 {[%emt 0:00:29]} Qc2+ {[%emt 0:00:05]} 53. Qxc2 {[%emt 0:00:03]} Rxc2+ {[%emt 0:00:04]} 54. Kg1 {[%emt 0:00:04]} Kxd6 {[%emt 0:00:23]} 55. Rb8 {[%emt 0:00:10]} Kc7 {[%emt 0:00:43]} 56. Rb6 {[%emt 0:01:14]} Rc6 {[%emt 0:00:07]} 57. Rb3 {[%emt 0:00:04]} Rc5 {[%emt 0:00:07]} 58. Ra3 {[%emt 0:00:07]} Kc6 {[%emt 0:00:01]} 59. Kf2 {[%emt 0:00:08]} Kb5 {[%emt 0:00:02]} 60. Ke2 {[%emt 0:00:15]} Kb4 {[%emt 0:00:04]} 0-1

[Event "51st La Roda Open 2025"]
[Site "La Roda"]
[Date "2025.04.19"]
[Round "7.15"]
[White "Vehi Bach, Victor Manuel"]
[Black "Juan Lepp, Jaime Boris"]
[Result "1-0"]
[Annotator "RC"]
[ECO "C48"]
[WhiteElo "2178"]
[BlackElo "2015"]
[PlyCount "69"]
[EventDate "2025.04.15"]
[EventType "swiss"]
[EventCountry "ESP"]
[SourceTitle "playchess.com"]
[Source "ChessBase"]
[SourceQuality "1"]
[TimeControl "5400+30"]

1. e4 {[%emt 0:00:03]} e5 {[%emt 0:00:07]} 2. Nf3 {[%emt 0:00:05]} Nc6 {[%emt 0:00:07]} 3. Nc3 {[%emt 0:02:40]} Nf6 {[%emt 0:00:12]} 4. Bb5 {[%emt 0:00:05]} Nd4 {[%emt 0:00:50]} 5. Ba4 {[%emt 0:00:36]} c6 {[%emt 0:13:03]} 6. d3 {[%emt 0:02:48]} Nxf3+ {[%emt 0:06:04]} 7. Qxf3 {[%emt 0:00:15]} d6 {[%emt 0:00:13]} 8. O-O {[%emt 0:04:22]} Be7 {[%emt 0:01:14]} 9. Nd5 {[%emt 0:23:43]} Nd7 {[%emt 0:08:57]} 10. Nxe7 {[%emt 0:01:25]} Qxe7 {[%emt 0:00:04]} 11. c3 {[%emt 0:22:33]} O-O {[%emt 0:00:48]} 12. d4 {[%emt 0:00:08]} Nb6 {[%emt 0:03:13]} 13. Bc2 {[%emt 0:00:36]} Be6 {[%emt 0:10:20]} 14. a4 {[%emt 0:05:32]} a5 {[%emt 0:03:51]} 15. b3 {[%emt 0:00:07]} Rfd8 {[%emt 0:00:11]} 16. Be3 {[%emt 0:04:14]} Qc7 {[%emt 0:01:39]} 17. Qg3 {[%emt 0:00:21]} Nc8 {[%emt 0:03:52]} 18. Bg5 {[%emt 0:05:40]} Ne7 {[%emt 0:03:56]} 19. Bf6 {[%emt 0:00:10]} Ng6 {[%emt 0:02:34]} 20. Bxd8 {[%emt 0:00:07]} Rxd8 {[%emt 0:00:02]} 21. dxe5 {[%emt 0:00:12]} dxe5 {[%emt 0:00:22]} 22. Rfd1 {[%emt 0:00:43]} Nf4 {[%emt 0:00:25]} 23. Qe3 {[%emt 0:00:40]} h6 {[%emt 0:01:51]} 24. g3 {[%emt 0:01:49]} Nh3+ {[%emt 0:01:08]} 25. Kg2 {[%emt 0:00:09]} Qe7 {[%emt 0:00:33]} 26. Rxd8+ {[%emt 0:02:53]} Qxd8 {[%emt 0:00:01]} 27. Bd3 {[%emt 0:02:35]} Qf6 {[%emt 0:00:51]} 28. Bc4 {[%emt 0:00:49]} Bc8 {[%emt 0:00:51]} 29. Rd1 {[%emt 0:03:55]} Kh7 {[%emt 0:01:38]} 30. Rd2 {[%emt 0:04:01]} Ng5 {[%emt 0:02:21]} 31. Be2 {[%emt 0:02:28]} Qe6 {[%emt 0:02:36]} 32. h4 {[%emt 0:02:27]} Nh3 {[%emt 0:00:48]} 33. Rd8 {[%emt 0:00:49]} Bd7 {[%emt 0:02:59]} 34. Qf3 {[%emt 0:01:22]} Qe7 {[%emt 0:01:13]} 35. Rxd7 {[%emt 0:00:21]} 1-0

[Event "51st La Roda Open 2025"]
[Site "La Roda"]
[Date "2025.04.19"]
[Round "7.16"]
[White "Garcia-Ballesteros Banos, Juan A"]
[Black "Hernandez Leon, Alberto"]
[Result "0-1"]
[Annotator "RC"]
[ECO "B52"]
[WhiteElo "1903"]
[BlackElo "2174"]
[PlyCount "108"]
[EventDate "2025.04.15"]
[EventType "swiss"]
[EventCountry "ESP"]
[SourceTitle "playchess.com"]
[Source "ChessBase"]
[SourceQuality "1"]
[TimeControl "5400+30"]

1. e4 {[%emt 0:03:15]} c5 {[%emt 0:00:13]} 2. Nf3 {[%emt 0:00:23]} d6 {[%emt 0:01:09]} 3. Bb5+ {[%emt 0:00:20]} Bd7 {[%emt 0:00:52]} 4. Bxd7+ {[%emt 0:00:10]} Qxd7 {[%emt 0:00:09]} 5. O-O {[%emt 0:00:08]} Nf6 {[%emt 0:00:21]} 6. Re1 {[%emt 0:00:07]} Nc6 {[%emt 0:00:12]} 7. c3 {[%emt 0:00:44]} e6 {[%emt 0:00:21]} 8. d4 {[%emt 0:00:20]} cxd4 {[%emt 0:00:14]} 9. cxd4 {[%emt 0:00:05]} d5 {[%emt 0:00:14]} 10. e5 {[%emt 0:00:17]} Ne4 {[%emt 0:00:10]} 11. a3 {[%emt 0:00:11]} Be7 {[%emt 0:01:30]} 12. Nbd2 {[%emt 0:00:14]} Nxd2 {[%emt 0:00:22]} 13. Bxd2 {[%emt 0:00:06]} O-O {[%emt 0:00:16]} 14. Rc1 {[%emt 0:00:16]} Rfc8 {[%emt 0:00:23]} 15. h4 {[%emt 0:00:10]} b5 {[%emt 0:10:05]} 16. h5 {[%emt 0:00:19]} h6 {[%emt 0:06:43]} 17. g4 {[%emt 0:00:12]} Qd8 {[%emt 0:01:04]} 18. Kh1 {[%emt 0:12:08]} b4 {[%emt 0:12:21]} 19. a4 {[%emt 0:02:02]} Na5 {[%emt 0:00:51]} 20. Rg1 {[%emt 0:12:08]} Nc4 {[%emt 0:18:50]} 21. Bf4 {[%emt 0:20:04]} Nxb2 {[%emt 0:10:31]} 22. Qb3 {[%emt 0:00:16]} Rc3 {[%emt 0:06:26]} 23. Rxc3 {[%emt 0:07:25]} bxc3 {[%emt 0:00:10]} 24. Qxc3 {[%emt 0:00:11]} Nxa4 {[%emt 0:00:33]} 25. Qc2 {[%emt 0:10:57]} Qa5 {[%emt 0:04:31]} 26. Bd2 {[%emt 0:07:01]} Qb5 {[%emt 0:01:08]} 27. Be3 {[%emt 0:08:44]} Qc4 {[%emt 0:01:51]} 28. Qb1 {[%emt 0:00:29]} Nc3 {[%emt 0:05:42]} 29. Qb7 {[%emt 0:00:18]} Re8 {[%emt 0:00:20]} 30. g5 {[%emt 0:05:09]} Qe2 {[%emt 0:01:43]} 31. Nh2 {[%emt 0:02:51]} Bxg5 {[%emt 0:03:10]} 32. Qc6 {[%emt 0:01:13]} Bxe3 {[%emt 0:04:59]} 33. Qxe8+ {[%emt 0:00:14]} Kh7 {[%emt 0:00:01]} 34. fxe3 {[%emt 0:02:14]} Ne4 {[%emt 0:00:02]} 35. Qxf7 {[%emt 0:01:08]} Nf2+ {[%emt 0:00:31]} 36. Kg2 {[%emt 0:00:43]} Ng4+ {[%emt 0:00:11]} 37. Kg3 {[%emt 0:01:22]} Qxh2+ {[%emt 0:00:23]} 38. Kxg4 {[%emt 0:01:37]} Qxg1+ {[%emt 0:00:12]} 39. Kh4 {[%emt 0:00:48]} Qg5+ {[%emt 0:00:17]} 40. Kh3 {[%emt 0:00:13]} Qxe3+ {[%emt 0:00:01]} 41. Kh2 {[%emt 0:00:23]} Qe2+ {[%emt 0:01:04]} 42. Kg3 {[%emt 0:00:30]} Qd3+ {[%emt 0:00:10]} 43. Kh2 {[%emt 0:00:27]} Qf5 {[%emt 0:01:51]} 44. Qxa7 {[%emt 0:00:49]} Qxh5+ {[%emt 0:00:06]} 45. Kg3 {[%emt 0:00:10]} Qg5+ {[%emt 0:00:12]} 46. Kh2 {[%emt 0:02:15]} h5 {[%emt 0:00:16]} 47. Qb6 {[%emt 0:00:35]} Qh4+ {[%emt 0:00:12]} 48. Kg2 {[%emt 0:00:09]} Qg4+ {[%emt 0:00:03]} 49. Kh2 {[%emt 0:02:25]} h4 {[%emt 0:00:11]} 50. Qb1+ {[%emt 0:00:09]} Qg6 {[%emt 0:01:24]} 51. Qd1 {[%emt 0:00:49]} Kh6 {[%emt 0:02:28]} 52. Qd2+ {[%emt 0:00:32]} Qg5 {[%emt 0:00:13]} 53. Qd1 {[%emt 0:00:40]} h3 {[%emt 0:00:55]} 54. Kxh3 {[%emt 0:00:29]} Qh5+ {[%emt 0:00:04]} 0-1

[Event "51st La Roda Open 2025"]
[Site "La Roda"]
[Date "2025.04.19"]
[Round "7.17"]
[White "Rodriguez Garcia, Manuel Francisco"]
[Black "Pastor Villalba, Arturo"]
[Result "1-0"]
[Annotator "NA RC"]
[ECO "A21"]
[WhiteElo "2131"]
[BlackElo "1907"]
[PlyCount "93"]
[EventDate "2025.04.15"]
[EventType "swiss"]
[EventCountry "ESP"]
[SourceTitle "playchess.com"]
[Source "ChessBase"]
[SourceQuality "1"]
[TimeControl "5400+30"]

1. c4 {[%emt 0:00:02]} e5 {[%emt 0:00:06]} 2. Nc3 {[%emt 0:00:08]} d6 {[%emt 0:00:16]} 3. g3 {[%emt 0:00:09]} f5 {[%emt 0:00:08]} 4. Bg2 {[%emt 0:00:11]} Nf6 {[%emt 0:00:06]} 5. d3 {[%emt 0:00:06]} Be7 {[%emt 0:00:10]} 6. e4 {[%emt 0:00:42]} O-O {[%emt 0:00:23]} 7. exf5 {[%emt 0:01:37]} c6 {[%emt 0:00:46]} 8. Nge2 {[%emt 0:02:15]} Bxf5 {[%emt 0:02:00]} 9. O-O {[%emt 0:00:08]} a5 {[%emt 0:00:57]} 10. d4 {[%emt 0:00:27]} Nbd7 {[%emt 0:02:51]} 11. h3 {[%emt 0:00:22]} Qc7 {[%emt 0:02:18]} 12. Be3 {[%emt 0:01:20]} Bg6 {[%emt 0:04:49]} 13. b3 {[%emt 0:04:59]} Rfe8 {[%emt 0:04:09]} 14. Qd2 {[%emt 0:06:28]} Bf8 {[%emt 0:02:34]} 15. Rae1 {[%emt 0:17:28]} Rad8 {[%emt 0:05:10]} 16. f4 {[%emt 0:06:38]} exd4 {[%emt 0:05:51]} 17. Bxd4 {[%emt 0:03:41]} Ne4 {[%emt 0:15:40]} 18. Nxe4 {[%emt 0:00:58]} Bxe4 {[%emt 0:00:17]} 19. Bxe4 {[%emt 0:00:06]} Rxe4 {[%emt 0:00:11]} 20. Nc3 {[%emt 0:00:08]} Rxe1 {[%emt 0:04:24]} 21. Rxe1 {[%emt 0:05:01]} Nc5 {[%emt 0:02:11]} 22. Qe3 {[%emt 0:04:45]} Qd7 {[%emt 0:02:26]} 23. Kg2 {[%emt 0:02:04]} Kf7 {[%emt 0:01:31]} 24. Bxc5 {[%emt 0:13:42]} dxc5 {[%emt 0:00:28]} 25. Rd1 {[%emt 0:00:31]} Qe7 {[%emt 0:01:17]} 26. Qxe7+ {[%emt 0:00:13]} Bxe7 {[%emt 0:00:51]} 27. Rxd8 {[%emt 0:01:23]} Bxd8 {[%emt 0:00:02]} 28. Kf3 {[%emt 0:00:32]} Ke6 {[%emt 0:00:48]} 29. g4 {[%emt 0:06:03]} h6 {[%emt 0:01:06]} 30. Ke4 {[%emt 0:00:27]} Bf6 {[%emt 0:00:58]} 31. Ne2 {[%emt 0:02:40]} g6 {[%emt 0:03:41]} 32. f5+ {[%emt 0:05:33]} Kf7 {[%emt 0:02:03]} 33. fxg6+ {[%emt 0:01:38]} Kxg6 {[%emt 0:00:22]} 34. Nf4+ {[%emt 0:00:07]} Kf7 {[%emt 0:01:30]} 35. Kf5 {[%emt 0:00:06]} b5 {[%emt 0:00:33]} 36. a4 {[%emt 0:00:23]} bxa4 {[%emt 0:01:17]} 37. bxa4 {[%emt 0:00:01]} Bd8 {[%emt 0:01:20]} 38. Nd3 {[%emt 0:00:21]} Bc7 {[%emt 0:02:16]} 39. Nxc5 {[%emt 0:01:23]} Bd6 {[%emt 0:02:04]} 40. Nd3 {[%emt 0:01:14]} Kg7 {[%emt 0:01:06]} 41. Ke6 {[%emt 0:02:54]} Ba3 {[%emt 0:00:45]} 42. c5 {[%emt 0:00:36]} Kg6 {[%emt 0:00:35]} 43. h4 {[%emt 0:00:05]} h5 {[%emt 0:00:30]} 44. gxh5+ {[%emt 0:00:45]} Kxh5 {[%emt 0:00:12]} 45. Kd6 {[%emt 0:00:02]} Kxh4 {[%emt 0:00:12]} 46. Kxc6 {[%emt 0:00:04]} Kg5 {[%emt 0:00:55]} 47. Kd5 {[%emt 0:13:34]} 1-0